fUSD/lending_fUSD_20250606
["ID","MTS","AMOUNT","RATE_DAILY","PERIOD"]
[364669202,1749192676100,-480.0,0.00030328,7]
[364669203,1749192676109,-480.0,0.00030328,7]
[364669204,1749192676118,-480.0,0.00030328,7]
[364669205,1749192676128,-1822.56,0.00030328,7]
[364669206,1749192676137,-480.0,0.00030328,7]
[364669207,1749192676146,-480.0,0.00030328,7]
[364669208,1749192676156,-480.0,0.00030328,7]
[364669209,1749192676165,-480.0,0.00030328,7]
[364669210,1749192676174,-480.0,0.00030328,7]
[364669211,1749192676183,-488.82154599,0.00030328,7]
[364669212,1749192676192,-485.80195335,0.00030328,7]
[364669213,1749192676201,-339.78847472,0.00030328,7]
[364669214,1749192676210,-480.0,0.00030328,7]
[364669215,1749192676219,-4426.81,0.00030328,7]
[364669216,1749192676229,-480.0,0.00030328,7]
[364669217,1749192676238,-480.0,0.00030328,7]
[364669218,1749192676247,-480.0,0.00030328,7]
[364669219,1749192676255,-487.20306759,0.00030328,7]
[364669220,1749192676264,-492.23874236,0.00030328,7]
[364669221,1749192676273,-480.0,0.00030328,7]
[364669222,1749192676282,-480.0,0.00030328,7]
[364669223,1749192676292,-490.83,0.00030328,7]
[364669224,1749192676301,-490.12848269,0.00030328,7]
[364669225,1749192676311,-480.0,0.00030328,7]
[364669226,1749192676319,-245.92635034,0.00030328,7]
[364669227,1749192676328,-480.0,0.00030328,7]
[364669228,1749192676338,-697.19,0.00030328,7]
[364669229,1749192676348,-4649.24,0.00030328,7]
[364669230,1749192676357,-480.0,0.00030328,7]
[364669231,1749192676366,-480.0,0.00030328,7]
[364669232,1749192676375,-957.68,0.00030328,7]
[364669233,1749192676384,-486.36135714,0.00030328,7]
[364669234,1749192676394,-480.0,0.00030328,7]
[364669235,1749192676403,-695.12,0.00030328,7]
[364669236,1749192676413,-480.0,0.00030328,7]
[364669237,1749192676422,-1012.38,0.00030328,7]
[364669238,1749192676431,-487.54297005,0.00030328,7]
[364669239,1749192676440,-250.0,0.00030328,7]
[364669240,1749192676449,-1510.55,0.00030328,7]
[364669241,1749192676459,-480.0,0.00030328,7]
[364669242,1749192676473,-480.0,0.00030328,7]
[364669243,1749192676491,-480.0,0.00030328,7]
[364669244,1749192676508,-151.0,0.00030328,7]
[364669245,1749192676527,-2057.71,0.00030328,7]
[364669246,1749192676546,-480.0,0.00030328,7]
[364669247,1749192676563,-151.0,0.00030328,7]
[364669248,1749192676581,-151.0,0.00030328,7]
[364669249,1749192676599,-494.72527346,0.00030328,7]
[364669250,1749192676617,-151.0,0.00030328,7]
[364669251,1749192676634,-484.25389279,0.00030328,7]
[364669252,1749192676652,-499.77647332,0.00030328,7]
[364669253,1749192676668,-1326.31,0.00030328,7]
[364669254,1749192676684,-480.0,0.00030328,7]
[364669255,1749192676700,-491.05088204,0.00030328,7]
[364669256,1749192676716,-480.0,0.00030328,7]
[364669257,1749192676731,-480.0,0.00030328,7]
[364669258,1749192676747,-480.0,0.00030328,7]
[364669259,1749192676763,-2487.41,0.00030328,7]
[364669260,1749192676778,-480.0,0.00030328,7]
[364669261,1749192676795,-480.0,0.00030328,7]
[364669262,1749192676810,-498.22459929,0.00030328,7]
[364669263,1749192676825,-480.0,0.00030328,7]
[364669264,1749192676841,-865.76,0.00030328,7]
[364669265,1749192676856,-480.0,0.00030328,7]
[364669266,1749192676871,-480.0,0.00030328,7]
[364669267,1749192676888,-460.0,0.00030328,7]
[364669268,1749192676904,-658.82,0.00030328,7]
[364669269,1749192676921,-2434.52,0.00030328,7]
[364669270,1749192676935,-251.61837732,0.00030328,7]
[364669271,1749192676953,-438.90016387,0.00030328,7]
[364669272,1749192676968,-1214.28,0.00030328,7]
[364669273,1749192676982,-480.0,0.00030328,7]
[364669274,1749192676997,-483.99946189,0.00030328,7]
[364669275,1749192677012,-2250.41,0.00030328,7]
[364669276,1749192677027,-2500.36,0.00030328,7]
[364669277,1749192677042,-448.89377785,0.00030328,7]
[364669278,1749192677056,-480.0,0.00030328,7]
[364669279,1749192677072,-1609.58,0.00030328,7]
[364669280,1749192677087,-480.0,0.00030328,7]
[364669281,1749192677102,-480.0,0.00030328,7]
[364669282,1749192677117,-480.0,0.00030328,7]
[364669283,1749192677133,-1591.07,0.00030328,7]
[364669284,1749192677148,-491.4751328,0.00030328,7]
[364669285,1749192677162,-954.48,0.00030328,7]
[364669286,1749192677178,-2964.95,0.00030328,7]
[364669287,1749192677193,-914.37,0.00030328,7]
[364669288,1749192677207,-480.0,0.00030328,7]
[364669289,1749192677223,-480.0,0.00030328,7]
[364669290,1749192677238,-1000.0,0.00030328,21]
[364669291,1749192677252,-863.97,0.00030328,7]
[364669292,1749192677267,-502.21832714,0.00030328,7]
[364669293,1749192677281,-480.0,0.00030328,7]
[364669294,1749192677296,-151.0,0.00030328,7]
[364669295,1749192677310,-151.0,0.00030328,7]
[364669296,1749192677326,-1029.37,0.00030328,7]
[364669297,1749192677341,-480.0,0.00030328,7]
[364669298,1749192677361,-480.0,0.00030328,7]
[364669299,1749192677376,-4581.4,0.00030328,7]
[364669300,1749192677390,-3870.48,0.00030328,7]
[364669301,1749192677405,-374.33019022,0.00030328,7]
[364669302,1749192677420,-491.99101096,0.00030328,7]
[364669303,1749192677436,-480.0,0.00030328,7]
[364669304,1749192677452,-480.0,0.00030328,7]
[364669305,1749192677467,-480.0,0.00030328,7]
[364669306,1749192677482,-1973.05,0.00030328,7]
[364669307,1749192677497,-480.0,0.00030328,7]
[364669308,1749192677511,-480.0,0.00030328,7]
[364669309,1749192677526,-771.51,0.00030328,7]
[364669310,1749192677541,-1333.62,0.00030328,7]
[364669311,1749192677556,-1950.14,0.00030328,7]
[364669312,1749192677570,-425.47665646,0.00030328,7]
[364669313,1749192677586,-872.38,0.00030328,7]
[364669314,1749192677600,-539.04,0.00030328,7]
[364669315,1749192677615,-480.0,0.00030328,7]
[364669316,1749192677629,-665.09,0.00030328,7]
[364669317,1749192677643,-456.48427398,0.00030328,7]
[364669318,1749192677658,-2377.35,0.00030328,7]
[364669319,1749192677673,-348.99824157,0.00030328,7]
[364669320,1749192677687,-3662.67,0.00030328,7]
[364669321,1749192677702,-883.58,0.00030328,7]
[364669322,1749192677716,-480.0,0.00030328,7]
[364669323,1749192677731,-496.35132524,0.00030328,7]
[364669324,1749192677745,-1433.96,0.00030328,7]
[364669325,1749192677759,-1527.49,0.00030328,7]
[364669326,1749192677774,-815.3,0.00030328,7]
[364669327,1749192677789,-480.0,0.00030328,7]
[364669328,1749192677804,-480.0,0.00030328,7]
[364669329,1749192677819,-480.0,0.00030328,7]
[364669330,1749192677833,-7169.61,0.00030328,7]
[364669331,1749192677849,-2424.75,0.00030328,7]
[364669332,1749192677865,-1168.66,0.00030328,7]
[364669333,1749192677880,-480.0,0.00030328,7]
[364669334,1749192677895,-1178.3,0.00030328,7]
[364669335,1749192677911,-480.0,0.00030328,7]
[364669336,1749192677926,-955.42,0.00030328,7]
[364669337,1749192677940,-2685.06,0.00030328,7]
[364669338,1749192677956,-557.21,0.00030328,7]
[364669339,1749192677969,-295.60632418,0.00030328,7]
[364669340,1749192677985,-480.0,0.00030328,7]
[364669341,1749192678000,-480.0,0.00030328,7]
[364669342,1749192678015,-492.39931651,0.00030328,7]
[364669343,1749192678029,-294.85269603,0.00030328,7]
[364669344,1749192678046,-678.48,0.00030328,7]
[364669345,1749192678060,-614.49,0.00030328,7]
[364669346,1749192678075,-1752.31,0.00030328,7]
[364669347,1749192678089,-207.93167265,0.00030328,7]
[364669348,1749192678104,-480.0,0.00030328,7]
[364669349,1749192678119,-480.0,0.00030328,7]
[364669350,1749192678134,-480.0,0.00030328,7]
[364669351,1749192678147,-524.63,0.00030328,7]
[364669352,1749192678156,-1421.96,0.00030328,7]
[364669353,1749192678166,-620.56550188,0.00030328,7]
[364669354,1749192678175,-480.0,0.00030328,7]
[364669355,1749192678184,-2463.45,0.00030328,7]
[364669356,1749192678194,-480.0,0.00030328,7]
[364669357,1749192678203,-480.0,0.00030328,7]
[364669358,1749192678524,-480.0,0.00030328,7]
[364669359,1749192678541,-480.0,0.00030328,7]
[364669360,1749192678551,-480.0,0.00030328,7]
[364669361,1749192678560,-480.0,0.00030328,7]
[364669362,1749192678570,-480.0,0.00030328,7]
[364669363,1749192678580,-639.4,0.00030328,7]
[364669364,1749192678590,-480.0,0.00030328,7]
[364669365,1749192678600,-662.65,0.00030328,7]
[364669366,1749192678609,-480.0,0.00030328,7]
[364669367,1749192678619,-480.0,0.00030328,7]
[364669368,1749192678628,-480.0,0.00030328,7]
[364669369,1749192678638,-1907.45,0.00030328,7]
[364669370,1749192678647,-480.0,0.00030328,7]
[364669371,1749192678657,-947.63,0.00030328,7]
[364669372,1749192678667,-480.0,0.00030328,7]
[364669373,1749192678676,-497.879911,0.00030328,7]
[364669374,1749192678686,-1739.03,0.00030328,7]
[364669375,1749192678695,-480.0,0.00030328,7]
[364669376,1749192678704,-480.0,0.00030328,7]
[364669377,1749192678715,-11346.31,0.00030328,7]
[364669378,1749192678724,-490.7865181,0.00030328,7]
[364669379,1749192678734,-480.0,0.00030328,7]
[364669380,1749192678743,-2387.99,0.00030328,7]
[364669381,1749192678753,-486.43758085,0.00030328,7]
[364669382,1749192678762,-485.54724894,0.00030328,7]
[364669383,1749192678772,-480.0,0.00030328,7]
[364669384,1749192678782,-480.0,0.00030328,7]
[364669385,1749192678793,-480.0,0.00030328,7]
[364669386,1749192678802,-1908.77,0.00030328,7]
[364669387,1749192678812,-936.41,0.00030328,7]
[364669388,1749192678822,-480.0,0.00030328,7]
[364669389,1749192678831,-12037.38,0.00030328,7]
[364669390,1749192678841,-665.52,0.00030328,7]
[364669391,1749192678851,-480.0,0.00030328,7]
[364669392,1749192678862,-155.79641091,0.00030328,7]
[364669393,1749192678872,-1666.44,0.00030328,7]
[364669394,1749192678882,-3717.93,0.00030328,7]
[364669395,1749192678892,-484.47396071,0.00030328,7]
[364669396,1749192678903,-480.0,0.00030328,7]
[364669397,1749192678914,-487.54450385,0.00030328,7]
[364669398,1749192678924,-2218.6,0.00030328,7]
[364669399,1749192678934,-601.16,0.00030328,7]
[364669400,1749192678945,-499.8665414,0.00030328,7]
[364669401,1749192678954,-480.0,0.00030328,7]
[364669402,1749192678964,-178.33895385,0.00030328,7]
[364669403,1749192678974,-2234.43,0.00030328,7]
[364669404,1749192678985,-443.62402992,0.00030328,7]
[364669405,1749192678996,-480.0,0.00030328,7]
[364669406,1749192679006,-1309.31,0.00030328,7]
[364669407,1749192679016,-2151.68,0.00030328,7]
[364669408,1749192679026,-1000.0,0.00030328,7]
[364669409,1749192679036,-10675.65,0.00030328,7]
[364669410,1749192679046,-480.0,0.00030328,7]
[364669411,1749192679056,-492.70743458,0.00030328,7]
[364669412,1749192679066,-1166.4,0.00030328,7]
[364669413,1749192679076,-496.22897132,0.00030328,7]
[364669414,1749192679087,-4171.06,0.00030328,7]
[364669415,1749192679096,-3269.76,0.00030328,7]
[364669416,1749192679106,-5024.74,0.00030328,7]
[364669417,1749192679115,-494.55999341,0.00030328,7]
[364669418,1749192679125,-3353.82,0.00030328,7]
[364669419,1749192679135,-480.0,0.00030328,7]
[364669420,1749192679145,-504.60064045,0.00030328,7]
[364669421,1749192679154,-803.55,0.00030328,7]
[364669422,1749192679164,-480.0,0.00030328,7]
[364669423,1749192679173,-480.0,0.00030328,7]
[364669424,1749192679183,-2089.91,0.00030328,7]
[364669425,1749192679193,-480.0,0.00030328,7]
[364669426,1749192679202,-558.33,0.00030328,7]
[364669427,1749192679212,-480.0,0.00030328,7]
[364669428,1749192679222,-5750.95,0.00030328,7]
[364669429,1749192679231,-2112.72,0.00030328,7]
[364669430,1749192679240,-984.05,0.00030328,7]
[364669431,1749192679250,-649.09,0.00030328,7]
[364669432,1749192679271,-5244.54,0.00030328,7]
[364669433,1749192679281,-480.0,0.00030328,7]
[364669434,1749192679292,-2026.78,0.00030328,7]
[364669435,1749192679303,-480.0,0.00030328,7]
[364669436,1749192679313,-190.59,0.00030328,7]
[364669437,1749192679323,-1412.62,0.00030328,7]
[364669438,1749192679333,-480.0,0.00030328,7]
[364669439,1749192679343,-3874.69,0.00030328,7]
[364669440,1749192679354,-1102.24,0.00030328,7]
[364669441,1749192679364,-480.0,0.00030328,7]
[364669442,1749192679374,-2056.04,0.00030328,7]
[364669443,1749192679384,-1374.66,0.00030328,7]
[364669444,1749192679395,-1014.46,0.00030328,7]
[364669445,1749192679407,-480.0,0.00030328,7]
[364669446,1749192679417,-17017.79,0.00030328,7]
[364669447,1749192679427,-420.757786,0.00030328,7]
[364669448,1749192679437,-420.757786,0.00030328,7]
[364669449,1749192679447,-480.0,0.00030328,7]
[364669450,1749192679457,-1207.83,0.00030328,7]
[364669451,1749192679467,-420.757786,0.00030328,7]
[364669452,1749192679476,-420.757794,0.00030328,7]
[364669453,1749192679486,-1593.16,0.00030328,7]
[364669454,1749192679496,-480.0,0.00030328,7]
[364669455,1749192679506,-1382.41,0.00030328,7]
[364669456,1749192679516,-496.64962129,0.00030328,7]
[364669457,1749192679526,-1264.89,0.00030328,7]
[364669458,1749192679535,-1074.2,0.00030328,7]
[364669459,1749192679546,-480.0,0.00030328,7]
[364669460,1749192679556,-1415.9,0.00030328,7]
[364669461,1749192679566,-1174.38,0.00030328,7]
[364669462,1749192679575,-2106.24,0.00030328,7]
[364669463,1749192679585,-2104.79,0.00030328,7]
[364669464,1749192679594,-498.62490576,0.00030328,7]
[364669465,1749192679604,-480.0,0.00030328,7]
[364669466,1749192679614,-495.7120733,0.00030328,7]
[364669467,1749192679623,-480.0,0.00030328,7]
[364669468,1749192679633,-480.0,0.00030328,7]
[364669469,1749192679642,-480.0,0.00030328,7]
[364669470,1749192679652,-480.0,0.00030328,7]
[364669471,1749192679662,-480.0,0.00030328,7]
[364669472,1749192679671,-6223.16,0.00030328,7]
[364669473,1749192679681,-2602.39,0.00030328,7]
[364669474,1749192679691,-495.45435143,0.00030328,7]
[364669475,1749192679700,-480.0,0.00030328,7]
[364669476,1749192679710,-480.0,0.00030328,7]
[364669477,1749192679720,-1829.73,0.00030328,7]
[364669478,1749192679729,-480.0,0.00030328,7]
[364669479,1749192679738,-883.77,0.00030328,7]
[364669480,1749192679750,-894.72,0.00030328,7]
[364669481,1749192679760,-609.11,0.00030328,7]
[364669482,1749192679769,-480.0,0.00030328,7]
[364669483,1749192679780,-633.72,0.00030328,7]
[364669484,1749192679790,-480.0,0.00030328,7]
[364669485,1749192679800,-489.95522101,0.00030328,7]
[364669486,1749192679810,-954.54,0.00030328,7]
[364669487,1749192679820,-494.51200056,0.00030328,7]
[364669488,1749192679831,-165.69601541,0.00030328,7]
[364669489,1749192679841,-480.0,0.00030328,7]
[364669490,1749192679851,-480.0,0.00030328,7]
[364669491,1749192679862,-480.0,0.00030328,7]
[364669492,1749192679872,-5331.78,0.00030328,7]
[364669493,1749192679882,-4575.79,0.00030328,7]
[364669494,1749192679893,-480.0,0.00030328,7]
[364669495,1749192679904,-480.0,0.00030328,7]
[364669496,1749192679917,-848.41,0.00030328,7]
[364669497,1749192679927,-1071.48,0.00030328,7]
[364669498,1749192679938,-690.02,0.00030328,7]
[364669499,1749192679947,-480.0,0.00030328,7]
[364669500,1749192679958,-480.0,0.00030328,7]
[364669501,1749192679968,-480.0,0.00030328,7]
[364669502,1749192679978,-480.0,0.00030328,7]
[364669503,1749192679989,-480.0,0.00030328,7]
[364669504,1749192680000,-6273.93,0.00030328,7]
[364669505,1749192680010,-496.19,0.00030328,7]
[364669506,1749192680019,-480.0,0.00030328,7]
[364669507,1749192680028,-1526.25,0.00030328,2]
[364669508,1749192680038,-892.65,0.00030328,7]
[364669509,1749192680048,-480.0,0.00030328,7]
[364669510,1749192680058,-480.0,0.00030328,7]
[364669511,1749192680068,-2043.06,0.00030328,7]
[364669512,1749192680078,-1846.69,0.00030328,7]
[364669513,1749192680088,-203.430055,0.00030328,7]
[364669514,1749192680098,-203.430055,0.00030328,7]
[364669515,1749192680107,-1324.34,0.00030328,7]
[364669516,1749192680118,-480.0,0.00030328,7]
[364669517,1749192680128,-152.50780307,0.00030328,7]
[364669518,1749192680137,-1018.89,0.00030328,7]
[364669519,1749192680147,-203.430055,0.00030328,7]
[364669520,1749192680157,-203.430063,0.00030328,7]
[364669521,1749192680166,-487.81856125,0.00030328,7]
[364669522,1749192680176,-2497.24,0.00030328,7]
[364669523,1749192680185,-495.36474966,0.00030328,7]
[364669524,1749192680195,-480.0,0.00030328,7]
[364669525,1749192680204,-5092.66,0.00030328,7]
[364669526,1749192680214,-1485.03,0.00030328,7]
[364669527,1749192680223,-1896.04,0.00030328,7]
[364669528,1749192680233,-854.68,0.00030328,7]
[364669529,1749192680242,-489.00516933,0.00030328,7]
[364669530,1749192680251,-480.0,0.00030328,7]
[364669531,1749192680261,-1334.57,0.00030328,7]
[364669532,1749192680270,-303.9669851,0.00030328,7]
[364669533,1749192680280,-1562.21,0.00030328,7]
[364669534,1749192680290,-480.0,0.00030328,7]
[364669535,1749192680300,-497.77677999,0.00030328,7]
[364669536,1749192680310,-378.86639128,0.00030328,7]
[364669537,1749192680320,-480.0,0.00030328,7]
[364669538,1749192680330,-13954.29,0.00030328,7]
[364669539,1749192680339,-480.0,0.00030328,7]
[364669540,1749192680349,-1000.0,0.00030328,7]
[364669541,1749192680358,-721.27,0.00030328,7]
[364669542,1749192680368,-749.27,0.00030328,7]
[364669543,1749192680377,-480.0,0.00030328,7]
[364669544,1749192680387,-480.0,0.00030328,7]
[364669545,1749192680396,-499.96858413,0.00030328,7]
[364669546,1749192680406,-480.0,0.00030328,7]
[364669547,1749192680416,-535.31,0.00030328,7]
[364669548,1749192680425,-497.91163239,0.00030328,7]
[364669549,1749192680435,-1410.64,0.00030328,7]
[364669550,1749192680445,-4145.62,0.00030328,7]
[364669551,1749192680455,-735.38,0.00030328,7]
[364669552,1749192680465,-1115.23,0.00030328,7]
[364669553,1749192680475,-2684.8,0.00030328,7]
[364669554,1749192680484,-239.241534,0.00030328,7]
[364669555,1749192680494,-239.241534,0.00030328,7]
[364669556,1749192680503,-480.0,0.00030328,7]
[364669557,1749192680513,-480.0,0.00030328,7]
[364669558,1749192680523,-151.0,0.00030328,7]
[364669559,1749192680532,-151.0,0.00030328,7]
[364669560,1749192680542,-480.0,0.00030328,7]
[364669561,1749192680552,-495.89585494,0.00030328,7]
[364669562,1749192680561,-776.15,0.00030328,7]
[364669563,1749192680571,-239.241534,0.00030328,7]
[364669564,1749192680580,-460.0,0.00030328,7]
[364669565,1749192680590,-480.0,0.00030328,7]
[364669566,1749192680600,-732.66,0.00030328,7]
[364669567,1749192680610,-239.241526,0.00030328,7]
[364669568,1749192680619,-1168.31,0.00030328,7]
[364669569,1749192680629,-1393.37,0.00030328,7]
[364669570,1749192680639,-480.0,0.00030328,7]
[364669571,1749192680648,-784.29,0.00030328,7]
[364669572,1749192680659,-586.88,0.00030328,7]
[364669573,1749192680669,-480.0,0.00030328,7]
[364669574,1749192680678,-894.81,0.00030328,7]
[364669575,1749192680688,-952.6,0.00030328,7]
[364669576,1749192680698,-1003.28,0.00030328,7]
[364669577,1749192680708,-1384.95,0.00030328,7]
[364669578,1749192680718,-480.0,0.00030328,7]
[364669579,1749192680727,-18294.64,0.00030328,7]
[364669580,1749192680737,-480.0,0.00030328,7]
[364669581,1749192680747,-701.3,0.00030328,7]
[364669582,1749192680757,-1044.12,0.00030328,7]
[364669583,1749192680768,-2507.72,0.00030328,7]
[364669584,1749192680778,-480.0,0.00030328,7]
[364669585,1749192680787,-599.66,0.00030328,7]
[364669586,1749192680798,-480.0,0.00030328,7]
[364669587,1749192680808,-480.0,0.00030328,7]
[364669588,1749192680819,-953.26,0.00030328,7]
[364669589,1749192680829,-522.75,0.00030328,7]
[364669590,1749192680838,-2723.64,0.00030328,7]
[364669591,1749192680848,-547.4,0.00030328,7]
[364669592,1749192680858,-1252.03,0.00030328,7]
[364669593,1749192680868,-480.0,0.00030328,7]
[364669594,1749192680877,-2222.98,0.00030328,7]
[364669595,1749192680887,-502.03,0.00030328,7]
[364669596,1749192680898,-151.0,0.00030328,7]
[364669597,1749192680910,-151.0,0.00030328,7]
[364669598,1749192680920,-1188.22,0.00030328,7]
[364669599,1749192680930,-1145.19,0.00030328,7]
[364669600,1749192680941,-1031.14,0.00030328,7]
[364669601,1749192680951,-480.0,0.00030328,7]
[364669602,1749192680961,-2372.89,0.00030328,7]
[364669603,1749192680971,-1367.81,0.00030328,7]
[364669604,1749192680982,-21187.12,0.00030328,7]
[364669605,1749192680993,-480.0,0.00030328,7]
[364669606,1749192681002,-823.56,0.00030328,7]
[364669607,1749192681012,-480.0,0.00030328,7]
[364669608,1749192681022,-480.0,0.00030328,7]
[364669609,1749192681031,-220.0,0.00030328,2]
[364669610,1749192681042,-2119.73,0.00030328,7]
[364669611,1749192681051,-4150.0,0.00030328,7]
[364669612,1749192681062,-363.3062526,0.00030328,3]
[364669613,1749192681072,-168.67287334,0.00030328,7]
[364669614,1749192681082,-981.45,0.00030328,7]
[364669615,1749192681092,-480.0,0.00030328,7]
[364669616,1749192681102,-480.0,0.00030328,7]
[364669617,1749192681112,-642.87,0.00030328,2]
[364669618,1749192681122,-976.64,0.00030328,7]
[364669619,1749192681132,-81999.01,0.00030328,7]
[364669620,1749192681141,-480.0,0.00030328,7]
[364669621,1749192681151,-895.35,0.00030328,7]
[364669622,1749192681161,-480.0,0.00030328,7]
[364669623,1749192681171,-480.0,0.00030328,7]
[364669624,1749192681180,-480.0,0.00030328,7]
[364669625,1749192681190,-2369.76,0.00030328,7]
[364669626,1749192681199,-894.02,0.00030328,7]
[364669627,1749192681209,-480.0,0.00030328,7]
[364669628,1749192681219,-1023.07,0.00030328,2]
[364669629,1749192681229,-500.0,0.00030328,2]
[364669630,1749192681239,-2483.0,0.00030328,2]
[364669631,1749192681248,-500.0,0.00030328,2]
[364669632,1749192681258,-500.0,0.00030329,2]
[364669633,1749192681268,-500.0,0.0003033,2]
[364669634,1749192681278,-500.0,0.0003033,2]
[364669635,1749192681287,-529.0,0.0003033,2]
[364669636,1749192681298,-500.0,0.0003033,2]
[364669637,1749192681308,-500.0,0.0003033,2]
[364669638,1749192681318,-1850.0,0.0003033,2]
[364669639,1749192681328,-151.0,0.00030332,7]
[364669640,1749192681338,-151.0,0.00030332,7]
[364669641,1749192681348,-151.0,0.00030333,7]
[364669642,1749192681358,-151.0,0.00030333,7]
[364669643,1749192681368,-1150.650336,0.00030333,7]
[364669644,1749192681378,-311.79899732,0.00030333,7]
[364669645,1749192682253,-338.8739827,0.00030333,7]
[364669646,1749192682561,-3515.44,0.00030164,7]
[364669647,1749192682571,-1032.16,0.00030164,7]
[364669648,1749192682583,-883.0,0.00030213,2]
[364669649,1749192682593,-1032.16,0.00030328,7]
[364669650,1749192682603,-3515.44,0.00030328,7]
[364669651,1749192682613,-499.97735598,0.00030333,7]
[364669652,1749192682623,-274.274428,0.00030333,7]
[364669653,1749192682632,-274.274428,0.00030333,7]
[364669654,1749192682642,-911.44139,0.00030333,7]
[364669655,1749192682652,-911.44139,0.00030333,7]
[364669656,1749192682661,-151.0,0.00030333,7]
[364669657,1749192682671,-151.0,0.00030333,7]
[364669658,1749192682680,-151.0,0.00030334,7]
[364669659,1749192682690,-151.0,0.00030334,7]
[364669660,1749192682699,-151.0,0.00030334,7]
[364669661,1749192682709,-151.0,0.00030334,7]
[364669662,1749192682719,-151.0,0.00030355,7]
[364669663,1749192682728,-151.0,0.00030355,7]
[364669664,1749192682738,-151.0,0.00030355,7]
[364669665,1749192682748,-263.209046,0.00030355,7]
[364669666,1749192682758,-263.209046,0.00030355,7]
[364669667,1749192682768,-500.0,0.00030356,2]
[364669668,1749192682778,-2483.0,0.00030356,2]
[364669669,1749192682787,-500.0,0.00030356,2]
[364669670,1749192682798,-500.0,0.00030356,2]
[364669671,1749192682808,-500.0,0.00030357,2]
[364669672,1749192682818,-500.0,0.00030357,2]
[364669673,1749192682828,-529.0,0.00030357,2]
[364669674,1749192682838,-500.0,0.00030357,2]
[364669675,1749192682847,-500.0,0.00030357,2]
[364669676,1749192682858,-1850.0,0.00030357,2]
[364669677,1749192682868,-502.70655437,0.00030373,5]
[364669678,1749192682877,-500.84080667,0.00030373,5]
[364669679,1749192682887,-500.0,0.00030373,5]
[364669680,1749192682896,-501.51368641,0.00030373,5]
[364669681,1749192682908,-500.0,0.00030373,5]
[364669682,1749192682918,-500.0,0.00030373,5]
[364669683,1749192682927,-500.0,0.00030373,5]
[364669684,1749192682938,-159.77786528,0.00030373,5]
[364669685,1749192682948,-159.89065553,0.00030373,5]
[364669686,1749192682958,-500.0,0.00030373,5]
[364669687,1749192682968,-500.0,0.00030373,5]
[364669688,1749192682979,-500.0,0.00030373,5]
[364669689,1749192682991,-500.0,0.00030373,5]
[364669690,1749192683001,-500.0,0.00030373,5]
[364669691,1749192683010,-500.0,0.00030373,5]
[364669692,1749192683020,-502.33085806,0.00030373,5]
[364669693,1749192683030,-500.0,0.00030373,5]
[364669694,1749192683039,-500.0,0.00030373,5]
[364669695,1749192683050,-306.60476057,0.00030373,5]
[364669696,1749192683060,-226.56794324,0.00030373,5]
[364669697,1749192683070,-512.98187733,0.00030373,5]
[364669698,1749192683080,-501.25090821,0.00030373,5]
[364669699,1749192683090,-500.0,0.00030373,5]
[364669700,1749192683100,-500.0,0.00030373,5]
[364669701,1749192683110,-500.73645701,0.00030373,5]